[Event "Late-Titled-Tuesday-Blitz-April-16-2024"]
[Site "Chess.com"]
[Date "2024.04.16"]
[Round "7"]
[White "martinmena"]
[Black "SilverCityIndigo"]
[Result "0-1"]
[WhiteElo "2186"]
[BlackElo "2424"]
[TimeControl "180+1"]
[EndTime "15:15:06 PDT"]
[Termination "SilverCityIndigo won by resignation"]

1. c4 {[%clk 0:03:00.9]} 1... e5 {[%clk 0:02:59.7]} 2. g3 {[%clk 0:03:00.1]}
2... Nc6 {[%clk 0:02:59.5]} 3. Bg2 {[%clk 0:02:59.4]} 3... Nf6 {[%clk 0:03:00]}
4. Nc3 {[%clk 0:02:58.5]} 4... Bb4 {[%clk 0:02:58.5]} 5. e4 {[%clk 0:02:56.7]}
5... Bxc3 {[%clk 0:02:58.1]} 6. bxc3 {[%clk 0:02:57.6]} 6... O-O {[%clk
0:02:50.5]} 7. Ne2 {[%clk 0:02:55.3]} 7... b6 {[%clk 0:02:50.3]} 8. O-O {[%clk
0:02:53.8]} 8... Ba6 {[%clk 0:02:49.1]} 9. d3 {[%clk 0:02:52.6]} 9... d6 {[%clk
0:02:45]} 10. h3 {[%clk 0:02:40]} 10... Re8 {[%clk 0:02:25.9]} 11. Bg5 {[%clk
0:02:35.8]} 11... h6 {[%clk 0:02:25.8]} 12. Be3 {[%clk 0:02:34.9]} 12... Na5
{[%clk 0:02:21.4]} 13. Qd2 {[%clk 0:02:32.6]} 13... c6 {[%clk 0:02:11.2]} 14. g4
{[%clk 0:02:32.4]} 14... d5 {[%clk 0:02:07.1]} 15. exd5 {[%clk 0:02:28.7]} 15...
cxd5 {[%clk 0:02:06.2]} 16. cxd5 {[%clk 0:02:28.9]} 16... e4 {[%clk 0:02:00.5]}
17. Bxh6 {[%clk 0:02:08.6]} 17... gxh6 {[%clk 0:01:53.8]} 18. Qxh6 {[%clk
0:02:09.5]} 18... Nh7 {[%clk 0:01:12.8]} 19. Bxe4 {[%clk 0:01:27.5]} 19... Rxe4
{[%clk 0:01:11.3]} 20. dxe4 {[%clk 0:01:28.4]} 20... Bxe2 {[%clk 0:01:11.1]} 21.
Rfe1 {[%clk 0:01:28.2]} 21... Bf3 {[%clk 0:01:01.8]} 22. Re3 {[%clk 0:01:22.7]}
22... Qg5 {[%clk 0:00:52.8]} 23. Qxg5+ {[%clk 0:00:54.9]} 23... Nxg5 {[%clk
0:00:53.7]} 24. h4 {[%clk 0:00:55.1]} 24... Nc4 {[%clk 0:00:26.4]} 25. hxg5
{[%clk 0:00:20.5]} 25... Nxe3 {[%clk 0:00:26.3]} 26. fxe3 {[%clk 0:00:21.4]}
26... Bxe4 {[%clk 0:00:26.8]} 27. Rd1 {[%clk 0:00:19.2]} 27... Rd8 {[%clk
0:00:27.2]} 28. d6 {[%clk 0:00:18.9]} 28... Bf3 {[%clk 0:00:27.9]} 29. Rd4
{[%clk 0:00:18.9]} 29... Kg7 {[%clk 0:00:26.6]} 30. Kf2 {[%clk 0:00:18.7]} 30...
Bc6 {[%clk 0:00:25.8]} 31. e4 {[%clk 0:00:19]} 31... Kg6 {[%clk 0:00:25.5]} 32.
Kg3 {[%clk 0:00:10.1]} 32... Kxg5 {[%clk 0:00:25.2]} 33. e5 {[%clk 0:00:10.2]}
33... Re8 {[%clk 0:00:22]} 34. c4 {[%clk 0:00:03.2]} 34... Bd7 {[%clk
0:00:13.6]} 35. Rd5 {[%clk 0:00:02.8]} 35... Be6 {[%clk 0:00:12.1]} 36. Rd4
{[%clk 0:00:02.9]} 36... Rc8 {[%clk 0:00:12.4]} 37. d7 {[%clk 0:00:02.6]} 37...
Rd8 {[%clk 0:00:12.6]} 38. Rd6 {[%clk 0:00:02.5]} 38... Rxd7 {[%clk 0:00:12.7]}
39. Rc6 {[%clk 0:00:02.2]} 39... Rd3+ {[%clk 0:00:12.9]} 40. Kf2 {[%clk
0:00:02.7]} 40... Kxg4 {[%clk 0:00:13.2]} 41. Rc7 {[%clk 0:00:03.2]} 41... Ra3
{[%clk 0:00:13.1]} 42. c5 {[%clk 0:00:02.7]} 42... Rxa2+ {[%clk 0:00:13.5]} 43.
Ke3 {[%clk 0:00:02.7]} 43... bxc5 {[%clk 0:00:13.8]} 44. Rxc5 {[%clk 0:00:03.3]}
44... a5 {[%clk 0:00:13.7]} 45. Rb5 {[%clk 0:00:03.1]} 45... Kf5 {[%clk
0:00:14.2]} 46. Rc5 {[%clk 0:00:03.1]} 46... a4 {[%clk 0:00:14.7]} 47. Ra5
{[%clk 0:00:02.9]} 47... a3 {[%clk 0:00:15.2]} 48. Kd3 {[%clk 0:00:03.5]} 48...
Ra1 {[%clk 0:00:15.5]} 49. Kc3 {[%clk 0:00:03.5]} 49... a2 {[%clk 0:00:16.2]}
50. Kb2 {[%clk 0:00:04.1]} 50... Rb1+ {[%clk 0:00:16.9]} 51. Kc2 {[%clk
0:00:02.7]} 51... a1=Q {[%clk 0:00:17.4]} 52. Rxa1 {[%clk 0:00:02.8]} 52... Rxa1
{[%clk 0:00:18.3]} 0-1

[Event "Late-Titled-Tuesday-Blitz-April-16-2024"]
[Site "Chess.com"]
[Date "2024.04.16"]
[Round "7"]
[White "only_strong_moves"]
[Black "Anton_Demchenko"]
[Result "0-1"]
[WhiteElo "2673"]
[BlackElo "2960"]
[TimeControl "180+1"]
[EndTime "15:15:09 PDT"]
[Termination "Anton_Demchenko won by checkmate"]

1. Nc3 {[%clk 0:03:00.9]} 1... Nf6 {[%clk 0:02:53.9]} 2. e4 {[%clk 0:03:00.9]}
2... e5 {[%clk 0:02:53.9]} 3. Bc4 {[%clk 0:03:01.5]} 3... Nc6 {[%clk 0:02:53.5]}
4. d3 {[%clk 0:03:02]} 4... Bb4 {[%clk 0:02:53.7]} 5. Ne2 {[%clk 0:03:01.5]}
5... d5 {[%clk 0:02:54.1]} 6. exd5 {[%clk 0:03:00.8]} 6... Nxd5 {[%clk 0:02:55]}
7. O-O {[%clk 0:03:00.9]} 7... Be6 {[%clk 0:02:55.2]} 8. Ne4 {[%clk 0:02:53.7]}
8... Be7 {[%clk 0:02:40.7]} 9. Bb3 {[%clk 0:02:31.3]} 9... f5 {[%clk 0:02:20.6]}
10. N4c3 {[%clk 0:02:26.7]} 10... Qd7 {[%clk 0:02:15.1]} 11. Nxd5 {[%clk
0:01:54.6]} 11... Bxd5 {[%clk 0:02:14.9]} 12. Nc3 {[%clk 0:01:55.3]} 12... Bxb3
{[%clk 0:02:10.3]} 13. axb3 {[%clk 0:01:56.2]} 13... O-O {[%clk 0:02:10.4]} 14.
Re1 {[%clk 0:01:49.8]} 14... Rad8 {[%clk 0:02:09.5]} 15. f3 {[%clk 0:01:34.7]}
15... Bc5+ {[%clk 0:02:01.6]} 16. Kh1 {[%clk 0:01:30.6]} 16... a6 {[%clk
0:01:59.3]} 17. Be3 {[%clk 0:01:30.1]} 17... Bd6 {[%clk 0:01:56.7]} 18. Qd2
{[%clk 0:01:19.6]} 18... Qf7 {[%clk 0:01:55.6]} 19. f4 {[%clk 0:00:53.8]} 19...
exf4 {[%clk 0:01:49.9]} 20. Bxf4 {[%clk 0:00:53.7]} 20... Bxf4 {[%clk
0:01:50.6]} 21. Qxf4 {[%clk 0:00:54.1]} 21... Nd4 {[%clk 0:01:51.4]} 22. Qf2
{[%clk 0:00:49.9]} 22... Qf6 {[%clk 0:01:01.7]} 23. Re3 {[%clk 0:00:49.7]} 23...
f4 {[%clk 0:00:30.9]} 24. Re4 {[%clk 0:00:45.8]} 24... f3 {[%clk 0:00:31.5]} 25.
g3 {[%clk 0:00:44.1]} 25... Qc6 {[%clk 0:00:28.4]} 26. Rf1 {[%clk 0:00:18]}
26... Qd6 {[%clk 0:00:24.7]} 27. Rfe1 {[%clk 0:00:14.7]} 27... c5 {[%clk
0:00:20.3]} 28. Re7 {[%clk 0:00:11.7]} 28... b6 {[%clk 0:00:20.6]} 29. R7e3
{[%clk 0:00:09.8]} 29... h6 {[%clk 0:00:18.8]} 30. Ne4 {[%clk 0:00:09.7]} 30...
Qd7 {[%clk 0:00:17.2]} 31. Nc3 {[%clk 0:00:08.9]} 31... Qh3 {[%clk 0:00:14.9]}
32. Ne4 {[%clk 0:00:05.2]} 32... Rf7 {[%clk 0:00:14.2]} 33. c3 {[%clk
0:00:04.2]} 33... Nxb3 {[%clk 0:00:10.8]} 34. Rxf3 {[%clk 0:00:04.8]} 34... Rxf3
{[%clk 0:00:10.3]} 35. Qxf3 {[%clk 0:00:05.7]} 35... Qd7 {[%clk 0:00:10.6]} 36.
Re3 {[%clk 0:00:05.4]} 36... Na5 {[%clk 0:00:09.6]} 37. Qe2 {[%clk 0:00:04.4]}
37... Nc6 {[%clk 0:00:09.8]} 38. Nf2 {[%clk 0:00:04.9]} 38... Qd5+ {[%clk
0:00:09.9]} 39. Re4 {[%clk 0:00:04.7]} 39... Ne5 {[%clk 0:00:09.5]} 40. Kg1
{[%clk 0:00:04.8]} 40... Ng6 {[%clk 0:00:07]} 41. h4 {[%clk 0:00:04.5]} 41...
Nf8 {[%clk 0:00:06.5]} 42. h5 {[%clk 0:00:04.5]} 42... Nh7 {[%clk 0:00:06.6]}
43. Nh3 {[%clk 0:00:04.5]} 43... Nf6 {[%clk 0:00:06.7]} 44. Nf4 {[%clk
0:00:04.4]} 44... Qg5 {[%clk 0:00:05.5]} 45. Re5 {[%clk 0:00:04]} 45... Qxg3+
{[%clk 0:00:05.7]} 46. Ng2 {[%clk 0:00:04.7]} 46... Ng4 {[%clk 0:00:05.1]} 47.
Rf5 {[%clk 0:00:03.7]} 47... Qh2+ {[%clk 0:00:04.8]} 48. Kf1 {[%clk 0:00:03.8]}
48... Qh1# {[%clk 0:00:05.7]} 0-1

[Event "Late-Titled-Tuesday-Blitz-April-16-2024"]
[Site "Chess.com"]
[Date "2024.04.16"]
[Round "7"]
[White "Oleksandr_Bortnyk"]
[Black "Gabrielian_Artur"]
[Result "1-0"]
[WhiteElo "3052"]
[BlackElo "2792"]
[TimeControl "180+1"]
[EndTime "15:15:11 PDT"]
[Termination "Oleksandr_Bortnyk won on time"]

1. e4 {[%clk 0:02:52.3]} 1... c5 {[%clk 0:02:59.5]} 2. c3 {[%clk 0:02:39.1]}
2... Nf6 {[%clk 0:02:58.7]} 3. e5 {[%clk 0:02:39.1]} 3... Nd5 {[%clk 0:02:58.7]}
4. Nf3 {[%clk 0:02:40]} 4... d6 {[%clk 0:02:57.3]} 5. Bb5+ {[%clk 0:02:40]} 5...
Bd7 {[%clk 0:02:56]} 6. Bc4 {[%clk 0:02:40]} 6... e6 {[%clk 0:02:50.8]} 7. O-O
{[%clk 0:02:31.7]} 7... Nc6 {[%clk 0:02:46.2]} 8. d4 {[%clk 0:02:30.4]} 8...
cxd4 {[%clk 0:02:44.8]} 9. cxd4 {[%clk 0:02:26.3]} 9... Nb6 {[%clk 0:02:37.2]}
10. Bb3 {[%clk 0:02:16.7]} 10... dxe5 {[%clk 0:02:28.6]} 11. dxe5 {[%clk
0:02:17.1]} 11... Be7 {[%clk 0:02:19.4]} 12. Nc3 {[%clk 0:02:17]} 12... Nb4
{[%clk 0:01:14.2]} 13. Qe2 {[%clk 0:02:13.5]} 13... N4d5 {[%clk 0:01:12.9]} 14.
Ne4 {[%clk 0:02:11.6]} 14... O-O {[%clk 0:01:07.7]} 15. Rd1 {[%clk 0:02:11.3]}
15... a6 {[%clk 0:01:07]} 16. a4 {[%clk 0:02:03.4]} 16... Rc8 {[%clk 0:01:06.2]}
17. Bd2 {[%clk 0:01:56.8]} 17... Qe8 {[%clk 0:01:01.2]} 18. Bg5 {[%clk
0:01:30.5]} 18... h6 {[%clk 0:00:52.6]} 19. Bxe7 {[%clk 0:01:22.3]} 19... Qxe7
{[%clk 0:00:53.5]} 20. Nd6 {[%clk 0:01:22.3]} 20... Rc7 {[%clk 0:00:50.1]} 21.
a5 {[%clk 0:01:20.1]} 21... Nc8 {[%clk 0:00:46.4]} 22. Bxd5 {[%clk 0:00:53.3]}
22... exd5 {[%clk 0:00:46.2]} 23. Nxc8 {[%clk 0:00:51.9]} 23... Rfxc8 {[%clk
0:00:45.7]} 24. Nd4 {[%clk 0:00:52.7]} 24... Rc4 {[%clk 0:00:39.1]} 25. b3
{[%clk 0:00:50.8]} 25... Rc3 {[%clk 0:00:36.2]} 26. f4 {[%clk 0:00:36.6]} 26...
Qh4 {[%clk 0:00:35.7]} 27. Qf2 {[%clk 0:00:35.2]} 27... Qh5 {[%clk 0:00:31.8]}
28. f5 {[%clk 0:00:31.1]} 28... Qg5 {[%clk 0:00:31.5]} 29. e6 {[%clk 0:00:27.5]}
29... Be8 {[%clk 0:00:30.4]} 30. h4 {[%clk 0:00:25]} 30... Qf6 {[%clk
0:00:29.5]} 31. Re1 {[%clk 0:00:22.9]} 31... Rd3 {[%clk 0:00:27.5]} 32. Rad1
{[%clk 0:00:21.8]} 32... Rxd1 {[%clk 0:00:24.1]} 33. Rxd1 {[%clk 0:00:22.7]}
33... fxe6 {[%clk 0:00:22.4]} 34. fxe6 {[%clk 0:00:18.6]} 34... Qxf2+ {[%clk
0:00:07]} 35. Kxf2 {[%clk 0:00:19.5]} 35... Kf8 {[%clk 0:00:07.5]} 36. Nf5
{[%clk 0:00:19.3]} 36... Rc2+ {[%clk 0:00:07.1]} 37. Kg3 {[%clk 0:00:16.1]}
37... g6 {[%clk 0:00:07.3]} 38. Nd4 {[%clk 0:00:07.2]} 38... Rc3+ {[%clk
0:00:07.3]} 39. Kf4 {[%clk 0:00:07.9]} 39... Ke7 {[%clk 0:00:07.8]} 40. Ke5
{[%clk 0:00:06.8]} 40... Rg3 {[%clk 0:00:06.5]} 41. Rc1 {[%clk 0:00:04.1]} 41...
Bc6 {[%clk 0:00:05.2]} 42. Nxc6+ {[%clk 0:00:04.2]} 42... bxc6 {[%clk
0:00:05.6]} 43. Rxc6 {[%clk 0:00:05.1]} 43... Re3+ {[%clk 0:00:05.9]} 44. Kxd5
{[%clk 0:00:04.9]} 44... Rxb3 {[%clk 0:00:06]} 45. Rc7+ {[%clk 0:00:02.2]} 45...
Ke8 {[%clk 0:00:05.8]} 46. Ra7 {[%clk 0:00:02.4]} 46... Rb5+ {[%clk 0:00:04.3]}
47. Kd6 {[%clk 0:00:02.9]} 47... Kf8 {[%clk 0:00:01.7]} 48. Ra8+ {[%clk
0:00:02.1]} 1-0

[Event "Late-Titled-Tuesday-Blitz-April-16-2024"]
[Site "Chess.com"]
[Date "2024.04.16"]
[Round "7"]
[White "LiemLe"]
[Black "Hikaru"]
[Result "0-1"]
[WhiteElo "3058"]
[BlackElo "3285"]
[TimeControl "180+1"]
[EndTime "15:15:17 PDT"]
[Termination "Hikaru won on time"]

1. d4 {[%clk 0:03:00.9]} 1... d5 {[%clk 0:02:59.2]} 2. c4 {[%clk 0:03:00.8]}
2... c6 {[%clk 0:02:59.3]} 3. cxd5 {[%clk 0:02:59.1]} 3... cxd5 {[%clk
0:02:59.6]} 4. Nc3 {[%clk 0:02:59.8]} 4... Nf6 {[%clk 0:02:59.8]} 5. Bf4 {[%clk
0:03:00.2]} 5... a6 {[%clk 0:02:59.2]} 6. e3 {[%clk 0:02:59.7]} 6... Nc6 {[%clk
0:02:59.6]} 7. Rc1 {[%clk 0:02:48.3]} 7... Bf5 {[%clk 0:02:58.2]} 8. Nf3 {[%clk
0:02:39.9]} 8... e6 {[%clk 0:02:58.1]} 9. Qb3 {[%clk 0:02:28.7]} 9... Nh5 {[%clk
0:02:41.2]} 10. Be5 {[%clk 0:02:19.3]} 10... f6 {[%clk 0:02:32.7]} 11. Bg3
{[%clk 0:02:03.5]} 11... Qd7 {[%clk 0:02:22.9]} 12. Be2 {[%clk 0:01:56.1]} 12...
Bg6 {[%clk 0:02:21.9]} 13. O-O {[%clk 0:01:46.8]} 13... Nxg3 {[%clk 0:02:21.9]}
14. hxg3 {[%clk 0:01:47.7]} 14... Na5 {[%clk 0:02:16.4]} 15. Qb6 {[%clk
0:01:44]} 15... Nc6 {[%clk 0:02:15.2]} 16. Na4 {[%clk 0:01:40.4]} 16... Bd6
{[%clk 0:02:08.6]} 17. Nc5 {[%clk 0:01:37.9]} 17... Bxc5 {[%clk 0:02:08.4]} 18.
Rxc5 {[%clk 0:01:38.8]} 18... O-O {[%clk 0:02:07.6]} 19. Rfc1 {[%clk 0:01:39.3]}
19... Rfb8 {[%clk 0:02:04.2]} 20. Ne1 {[%clk 0:01:25.5]} 20... Qd8 {[%clk
0:02:02.7]} 21. Qb3 {[%clk 0:01:25.3]} 21... Qe7 {[%clk 0:01:55.8]} 22. g4
{[%clk 0:01:13.4]} 22... Bf7 {[%clk 0:01:55.3]} 23. Nd3 {[%clk 0:01:05.3]} 23...
e5 {[%clk 0:01:55.6]} 24. dxe5 {[%clk 0:01:04]} 24... fxe5 {[%clk 0:01:53.7]}
25. Nb4 {[%clk 0:01:02.5]} 25... Nxb4 {[%clk 0:01:31.9]} 26. Qxb4 {[%clk
0:01:03.4]} 26... Rf8 {[%clk 0:01:32]} 27. Qb6 {[%clk 0:00:57.1]} 27... Qe6
{[%clk 0:01:08.8]} 28. Qxb7 {[%clk 0:00:23.3]} 28... Rfb8 {[%clk 0:00:58.6]} 29.
Qc7 {[%clk 0:00:20.4]} 29... Rxb2 {[%clk 0:00:59]} 30. Bd1 {[%clk 0:00:20.9]}
30... Qf6 {[%clk 0:00:47.3]} 31. R1c2 {[%clk 0:00:21.4]} 31... Rb1 {[%clk
0:00:45.8]} 32. Rc1 {[%clk 0:00:21.8]} 32... Rxc1 {[%clk 0:00:43.8]} 33. Rxc1
{[%clk 0:00:21.8]} 33... Rf8 {[%clk 0:00:41.4]} 34. Rc6 {[%clk 0:00:19.1]} 34...
Qg5 {[%clk 0:00:38.2]} 35. Bb3 {[%clk 0:00:18.4]} 35... Qxg4 {[%clk 0:00:37.2]}
36. Qxe5 {[%clk 0:00:17.5]} 36... a5 {[%clk 0:00:33.3]} 37. Rc5 {[%clk
0:00:15.2]} 37... a4 {[%clk 0:00:33.5]} 38. Bxd5 {[%clk 0:00:15.3]} 38... h6
{[%clk 0:00:28.3]} 39. Bf3 {[%clk 0:00:14.2]} 39... Qd7 {[%clk 0:00:27.9]} 40.
a3 {[%clk 0:00:12.9]} 40... Qd3 {[%clk 0:00:27.7]} 41. Rc3 {[%clk 0:00:11.7]}
41... Qb1+ {[%clk 0:00:27.2]} 42. Kh2 {[%clk 0:00:12.2]} 42... Qb2 {[%clk
0:00:28.1]} 43. Qd4 {[%clk 0:00:11.5]} 43... Qxf2 {[%clk 0:00:28]} 44. Qxa4
{[%clk 0:00:10.7]} 44... Bg6 {[%clk 0:00:25.4]} 45. Qg4 {[%clk 0:00:09.6]} 45...
Kh7 {[%clk 0:00:25.4]} 46. Qg3 {[%clk 0:00:09.5]} 46... Qd2 {[%clk 0:00:22]} 47.
Rc6 {[%clk 0:00:09.5]} 47... Bb1 {[%clk 0:00:21.9]} 48. Rc7 {[%clk 0:00:06.4]}
48... Qb2 {[%clk 0:00:19.1]} 49. a4 {[%clk 0:00:04.9]} 49... Bg6 {[%clk
0:00:16.9]} 50. Rb7 {[%clk 0:00:04.4]} 50... Qc3 {[%clk 0:00:11.8]} 51. Bd5
{[%clk 0:00:03.1]} 51... Rf5 {[%clk 0:00:09.6]} 52. Be6 {[%clk 0:00:01.4]} 52...
Rg5 {[%clk 0:00:04.8]} 53. Qf4 {[%clk 0:00:02]} 53... Qc2 {[%clk 0:00:04.9]} 54.
Bh3 {[%clk 0:00:02.4]} 54... Be4 {[%clk 0:00:05.4]} 55. Rb8 {[%clk 0:00:01.7]}
55... Rxg2+ {[%clk 0:00:05.8]} 0-1

[Event "Late-Titled-Tuesday-Blitz-April-16-2024"]
[Site "Chess.com"]
[Date "2024.04.16"]
[Round "7"]
[White "Kildepiotr"]
[Black "IPAchess"]
[Result "1-0"]
[WhiteElo "2702"]
[BlackElo "2385"]
[TimeControl "180+1"]
[EndTime "15:15:18 PDT"]
[Termination "Kildepiotr won by checkmate"]

1. Nf3 {[%clk 0:03:00.7]} 1... d5 {[%clk 0:02:59.8]} 2. g3 {[%clk 0:03:00.9]}
2... Nf6 {[%clk 0:02:59.8]} 3. Bg2 {[%clk 0:03:01.4]} 3... e6 {[%clk 0:03:00.6]}
4. O-O {[%clk 0:03:01.9]} 4... Be7 {[%clk 0:03:00.9]} 5. d3 {[%clk 0:03:02.8]}
5... c5 {[%clk 0:02:59.5]} 6. Nbd2 {[%clk 0:03:03.7]} 6... O-O {[%clk
0:02:59.4]} 7. e4 {[%clk 0:03:04.4]} 7... Nc6 {[%clk 0:02:57.5]} 8. Re1 {[%clk
0:03:04]} 8... b5 {[%clk 0:02:57.9]} 9. e5 {[%clk 0:03:03.7]} 9... Nd7 {[%clk
0:02:57.6]} 10. Nf1 {[%clk 0:03:04.3]} 10... Bb7 {[%clk 0:02:55.9]} 11. h4
{[%clk 0:03:03.5]} 11... Qc7 {[%clk 0:02:56.3]} 12. Bf4 {[%clk 0:03:03.3]} 12...
Rfc8 {[%clk 0:02:56.6]} 13. Ne3 {[%clk 0:03:03.2]} 13... Qd8 {[%clk 0:02:56.7]}
14. h5 {[%clk 0:03:02.9]} 14... Nd4 {[%clk 0:02:45]} 15. h6 {[%clk 0:02:57]}
15... g6 {[%clk 0:02:43.5]} 16. Ng4 {[%clk 0:02:52.3]} 16... a5 {[%clk 0:02:41]}
17. c3 {[%clk 0:02:45.4]} 17... Nxf3+ {[%clk 0:02:38.2]} 18. Bxf3 {[%clk
0:02:42.5]} 18... Ra7 {[%clk 0:02:38.5]} 19. Qd2 {[%clk 0:02:41.4]} 19... g5
{[%clk 0:02:14.6]} 20. Be3 {[%clk 0:02:41.4]} 20... d4 {[%clk 0:02:14.6]} 21.
Bxb7 {[%clk 0:02:30.4]} 21... dxe3 {[%clk 0:02:13.2]} 22. Rxe3 {[%clk
0:02:30.6]} 22... Rxb7 {[%clk 0:02:13.2]} 23. Rf3 {[%clk 0:02:25]} 23... Qf8
{[%clk 0:01:08.8]} 24. Kg2 {[%clk 0:02:19]} 24... Kh8 {[%clk 0:01:02.1]} 25. Rh1
{[%clk 0:02:17.6]} 25... Qg8 {[%clk 0:00:59.5]} 26. c4 {[%clk 0:01:55.9]} 26...
b4 {[%clk 0:00:55.2]} 27. b3 {[%clk 0:01:54.1]} 27... Qg6 {[%clk 0:00:55.1]} 28.
d4 {[%clk 0:01:50.3]} 28... cxd4 {[%clk 0:00:51.9]} 29. Qxd4 {[%clk 0:01:50]}
29... Nf8 {[%clk 0:00:40.5]} 30. Nf6 {[%clk 0:01:43.4]} 30... Rd8 {[%clk
0:00:35.3]} 31. Qg4 {[%clk 0:01:41.2]} 31... Rd3 {[%clk 0:00:21.9]} 32. Rh5
{[%clk 0:00:49]} 32... Bxf6 {[%clk 0:00:14.7]} 33. Rxf6 {[%clk 0:00:47.1]} 33...
Qg8 {[%clk 0:00:14.7]} 34. Rxg5 {[%clk 0:00:44.5]} 34... Ng6 {[%clk 0:00:15.3]}
35. Qe4 {[%clk 0:00:37.1]} 35... Rbd7 {[%clk 0:00:15.2]} 36. c5 {[%clk
0:00:33.5]} 36... R3d4 {[%clk 0:00:14.7]} 37. Qe3 {[%clk 0:00:29.1]} 37... Qf8
{[%clk 0:00:13.8]} 38. c6 {[%clk 0:00:25]} 38... Rd8 {[%clk 0:00:11.4]} 39. c7
{[%clk 0:00:24.8]} 39... R8d7 {[%clk 0:00:11.9]} 40. Rh5 {[%clk 0:00:10.3]}
40... R4d5 {[%clk 0:00:10]} 41. Qb6 {[%clk 0:00:09.3]} 41... Qc8 {[%clk
0:00:09.3]} 42. f4 {[%clk 0:00:06.9]} 42... Qxc7 {[%clk 0:00:09.5]} 43. Qe3
{[%clk 0:00:06.7]} 43... Rd3 {[%clk 0:00:08.7]} 44. Qe4 {[%clk 0:00:06.4]} 44...
Rd2+ {[%clk 0:00:09]} 45. Kh3 {[%clk 0:00:06.9]} 45... R2d5 {[%clk 0:00:09.1]}
46. f5 {[%clk 0:00:06]} 46... exf5 {[%clk 0:00:07.1]} 47. Rhxf5 {[%clk
0:00:05.9]} 47... Rxe5 {[%clk 0:00:06.6]} 48. Rxe5 {[%clk 0:00:05.8]} 48... Qxe5
{[%clk 0:00:07.5]} 49. Qa8+ {[%clk 0:00:04.8]} 49... Rd8 {[%clk 0:00:02.1]} 50.
Qxd8+ {[%clk 0:00:04.9]} 50... Nf8 {[%clk 0:00:02.8]} 51. Qxf8# {[%clk
0:00:05.2]} 1-0

[Event "Late-Titled-Tuesday-Blitz-April-16-2024"]
[Site "Chess.com"]
[Date "2024.04.16"]
[Round "7"]
[White "Hasangatin_Ramil"]
[Black "stollenmonster"]
[Result "0-1"]
[WhiteElo "2643"]
[BlackElo "2887"]
[TimeControl "180+1"]
[EndTime "15:15:19 PDT"]
[Termination "stollenmonster won on time"]

1. e4 {[%clk 0:03:00.9]} 1... c5 {[%clk 0:02:59.8]} 2. Nf3 {[%clk 0:03:00.9]}
2... Nf6 {[%clk 0:03:00.3]} 3. e5 {[%clk 0:02:53.3]} 3... Nd5 {[%clk 0:03:00.7]}
4. d4 {[%clk 0:02:53.7]} 4... cxd4 {[%clk 0:03:00.4]} 5. Qxd4 {[%clk 0:02:54.6]}
5... e6 {[%clk 0:03:00.6]} 6. c4 {[%clk 0:02:54]} 6... Nc6 {[%clk 0:03:00.6]} 7.
Qe4 {[%clk 0:02:54]} 7... f5 {[%clk 0:02:59.9]} 8. exf6 {[%clk 0:02:54.9]} 8...
Nxf6 {[%clk 0:02:59.9]} 9. Qc2 {[%clk 0:02:54.4]} 9... d5 {[%clk 0:02:59.1]} 10.
Be2 {[%clk 0:02:52]} 10... Bd6 {[%clk 0:02:57.9]} 11. O-O {[%clk 0:02:51.3]}
11... O-O {[%clk 0:02:58.5]} 12. Bg5 {[%clk 0:02:48.1]} 12... d4 {[%clk
0:02:53.1]} 13. Nbd2 {[%clk 0:02:41.4]} 13... e5 {[%clk 0:02:52.8]} 14. a3
{[%clk 0:02:36.8]} 14... a5 {[%clk 0:02:48.6]} 15. Bd3 {[%clk 0:02:35.8]} 15...
h6 {[%clk 0:02:45.6]} 16. Bh4 {[%clk 0:02:32.9]} 16... Be7 {[%clk 0:02:23.4]}
17. Rfe1 {[%clk 0:02:30.3]} 17... Nh5 {[%clk 0:02:22.8]} 18. Bg3 {[%clk
0:02:23.3]} 18... Nxg3 {[%clk 0:02:21.5]} 19. hxg3 {[%clk 0:02:23.2]} 19... Bf6
{[%clk 0:02:21.7]} 20. Ne4 {[%clk 0:02:06.7]} 20... Bg4 {[%clk 0:02:16.8]} 21.
Nh2 {[%clk 0:02:04]} 21... Be6 {[%clk 0:02:13.9]} 22. Rab1 {[%clk 0:01:58.2]}
22... a4 {[%clk 0:02:13]} 23. Qe2 {[%clk 0:01:58.2]} 23... Qe7 {[%clk
0:02:04.4]} 24. g4 {[%clk 0:01:57.2]} 24... Rae8 {[%clk 0:01:58.1]} 25. Nf1
{[%clk 0:01:52.1]} 25... Bg5 {[%clk 0:01:55.3]} 26. Nfg3 {[%clk 0:01:49.1]}
26... Bf4 {[%clk 0:01:46.3]} 27. Nh5 {[%clk 0:01:37.4]} 27... Qh4 {[%clk
0:01:38.4]} 28. Nxf4 {[%clk 0:01:13.4]} 28... exf4 {[%clk 0:01:36.6]} 29. f3
{[%clk 0:01:10.4]} 29... Ne5 {[%clk 0:01:34.2]} 30. Rbd1 {[%clk 0:00:59.9]}
30... Bxg4 {[%clk 0:01:29.1]} 31. Qf2 {[%clk 0:00:49]} 31... Qh5 {[%clk
0:00:58.3]} 32. Be2 {[%clk 0:00:27.3]} 32... Bf5 {[%clk 0:00:46]} 33. Rxd4
{[%clk 0:00:27]} 33... Nc6 {[%clk 0:00:45.3]} 34. Rd6 {[%clk 0:00:17]} 34...
Bxe4 {[%clk 0:00:43.3]} 35. fxe4 {[%clk 0:00:17.9]} 35... Qg5 {[%clk 0:00:43.2]}
36. Bf3 {[%clk 0:00:16.8]} 36... Ne5 {[%clk 0:00:42.3]} 37. Rd5 {[%clk 0:00:17]}
37... h5 {[%clk 0:00:40.7]} 38. Red1 {[%clk 0:00:10.4]} 38... h4 {[%clk
0:00:37.8]} 39. Kf1 {[%clk 0:00:10.8]} 39... Qf6 {[%clk 0:00:32.6]} 40. c5
{[%clk 0:00:08.7]} 40... g5 {[%clk 0:00:30.4]} 41. Qd4 {[%clk 0:00:07.7]} 41...
g4 {[%clk 0:00:28.9]} 42. Be2 {[%clk 0:00:05.8]} 42... f3 {[%clk 0:00:29.3]} 43.
gxf3 {[%clk 0:00:06.3]} 43... gxf3 {[%clk 0:00:27.4]} 44. Bc4 {[%clk 0:00:06.1]}
44... Kh8 {[%clk 0:00:27]} 45. Kf2 {[%clk 0:00:03.4]} 45... Ng4+ {[%clk
0:00:22.7]} 46. Kf1 {[%clk 0:00:03.6]} 46... Ne5 {[%clk 0:00:16]} 47. Qf2 {[%clk
0:00:02.7]} 47... Rg8 {[%clk 0:00:12.4]} 48. Be2 {[%clk 0:00:01.9]} 48... fxe2+
{[%clk 0:00:11.1]} 49. Kxe2 {[%clk 0:00:02.8]} 49... Qh6 {[%clk 0:00:08.3]} 50.
Rd6 {[%clk 0:00:01.7]} 50... Qh5+ {[%clk 0:00:08.5]} 51. Ke3 {[%clk 0:00:01.2]}
51... Rg3+ {[%clk 0:00:07.8]} 0-1